Cogmind - Beta 14 @@@ ROGUE MODE // 2024.09.27 @ 06:35:20 Player: BVrutally Odd Result: Destroyed by G-67 Veteran with Plasma Rifle Performance ------------- Evolutions (7) 3500 Regions Visited (22) 4400 Robots Destroyed (229) 1145 Value Destroyed (11564) 11564 Prototype IDs (36) 720 Alien Tech Used (0) 0 Bonus (1918) 1918 TOTAL SCORE: 23247 Bonus ------- High Alert Combat Kills 597 Follower Combat Kills 1165 Entered DSFs 500 Aligned with FarCom 300 Friendly Fire -644 Cogmind --------- Core Integrity 0/1300 Matter 291/300 Energy 52/100 System Corruption 12% Temperature Cool (12) Movement Core (50) Location -3/Research Parts ------- > --- POWER (2) -------- (None) > --- PROPULSION (4) --- (None) > --- UTILITY (13) ----- (None) > --- WEAPON (2) ------- (None) > --- INVENTORY (5) ---- Advanced Cooling System Advanced Matter Compressor (400) Advanced Signal Interpreter Long-range Tractor Beam Long-range Proton Cannon Peak State ------------ > --- POWER ------------ Particle Reactor Quantum Reactor > --- PROPULSION ------- Armored Medium Treads Biometal Medium Treads Centrium Heavy Treads > --- UTILITY ---------- High-capacity Storage Unit Advanced Gravity Neutralizer Advanced Visual Processing Unit Makeshift Terrain Scanner Advanced Target Analyzer Core Analyzer Improved Transmission Jammer Centrium Medium Armor Plating Centrium Medium Armor Plating Advanced Force Field Improved Hacking Suite Improved Hacking Suite Improved System Shield > --- WEAPON ----------- Advanced KE Penetrator Advanced KE Penetrator > --- INVENTORY -------- Antimatter Reactor Centrium Heavy Treads Advanced Cooling System Advanced Cooling System Advanced Matter Compressor Advanced Signal Interpreter Quantum Capacitor Improved Medium Armor Plating Improved Medium Armor Plating Centrium Medium Armor Plating Improved Hardlight Generator Advanced Force Field Improved Dynamic Insulation System Long-range Tractor Beam Long-range Proton Cannon Compact HERF Cannon Advanced Plasma Cannon Matter Neutralizer [Rating: 155] Favorites ----------- Power Hybrid Fission Core Engine Light Angular Momentum Engine Power Core Hybrid Fission Core Reactor Quantum Reactor Propulsion Heavy Treads Treads Heavy Treads Leg Overtuned Titanium Leg Wheel Armored Huge Wheel Utility High-capacity Storage Unit Device Drone Bay Storage High-capacity Storage Unit Processor Advanced Visual Processing Unit Hackware Improved Hacking Suite Protection Hardened Medium Armor Plating Weapon Enhanced Coil Gun Energy Gun EM Pulse Gun Energy Cannon Firepult Ballistic Gun Enhanced Coil Gun Ballistic Cannon Hardcell Cannon Launcher Improved Proton Missile Launcher Special Weapon CPS Tube Impact Weapon Mace Slashing Weapon Master Tearclaws Build | -11 -10 -10 -10 -9 -8 -8 -8 -8 -6 -6 -5 -5 -5 -5 -5 -5 -4 -4 -4 -4 -4 -3 ------- Run | Yrd Mat Min Exi Min Mat Sto Rec Scr Fac DSF Fac Was Fac Upp Upp War Pro Fac Ext Cet Arc Res Slots Evolved 14 | . . . . . 4 . . . 4 . 2 . . . . . . 2 . . . 2 Power 1 | . . . . . . . . . . . 1 . . . . . . . . . . . Propulsion 2 | . . . . . 1 . . . 1 . . . . . . . . . . . . . Utility 11 | . . . . . 3 . . . 3 . 1 . . . . . . 2 . . . 2 Weapon . | . . . . . . . . . . . . . . . . . . . . . . . Parts Attached 232 | 7 . 3 2 . 19 8 . 54 4 10 2 7 1 3 2 . 10 3 23 8 12 54 Power 20 | 1 . . . . 2 . . 3 . . 1 . . . . . 3 1 6 . 2 1 Engine 4 | 1 . . . . 2 . . 1 . . . . . . . . . . . . . . Core 6 | . . . . . . . . 2 . . 1 . . . . . 3 . . . . . Reactor 10 | . . . . . . . . . . . . . . . . . . 1 6 . 2 1 Propulsion 35 | 2 . . 1 . 4 . . 13 1 . . 2 . . 1 . . . 2 1 4 4 Treads 31 | 2 . . . . 3 . . 11 1 . . 2 . . 1 . . . 2 1 4 4 Leg 1 | . . . . . . . . 1 . . . . . . . . . . . . . . Wheel 3 | . . . 1 . 1 . . 1 . . . . . . . . . . . . . . Hover . | . . . . . . . . . . . . . . . . . . . . . . . Flight . | . . . . . . . . . . . . . . . . . . . . . . . Utility 110 | 2 . 2 1 . 7 4 . 20 3 3 1 2 1 . 1 . 6 2 10 4 4 37 Device 64 | 1 . . . . 2 4 . 10 2 1 1 1 1 . . . 5 1 7 1 2 25 Storage 4 | 1 . 1 1 . . . . . . . . . . . . . . . . . . 1 Processor 7 | . . . . . . . . 1 . 2 . . . . 1 . 1 . 1 . . 1 Hackware 3 | . . . . . . . . . . . . . . . . . . . . . 1 2 Protection 32 | . . 1 . . 5 . . 9 1 . . 1 . . . . . 1 2 3 1 8 Artifact . | . . . . . . . . . . . . . . . . . . . . . . . Weapon 67 | 2 . 1 . . 6 4 . 18 . 7 . 3 . 3 . . 1 . 5 3 2 12 Energy Gun 10 | 1 . . . . 4 2 . 1 . 1 . . . . . . . . . . . 1 Energy Cannon 19 | . . . . . . . . 3 . 2 . 1 . . . . . . 2 2 . 9 Ballistic Gun 31 | 1 . 1 . . 2 2 . 12 . 3 . 2 . 2 . . 1 . 1 . 2 2 Ballistic Cannon 2 | . . . . . . . . . . . . . . . . . . . 2 . . . Launcher 1 | . . . . . . . . . . . . . . . . . . . . 1 . . Special Weapon 1 | . . . . . . . . 1 . . . . . . . . . . . . . . Impact Weapon 1 | . . . . . . . . . . 1 . . . . . . . . . . . . Slashing Weapon 2 | . . . . . . . . 1 . . . . . 1 . . . . . . . . Piercing Weapon . | . . . . . . . . . . . . . . . . . . . . . . . Special Melee Weapon . | . . . . . . . . . . . . . . . . . . . . . . . Unidentified Prototypes 13 | . . . . . 3 2 . . . 1 . . . . . . . . . 1 2 4 Corrupted Parts 6 | . . . . . . . . . . . . . . . . . . . . . 6 . System Corruption 43 | . . . . . . . . . . . . . . . . . . . . . 43 . Parts Lost 44 | . 1 . . . . . . 8 . 1 . . . . . . 2 3 6 1 1 21 Power 7 | . . . . . . . . 1 . . . . . . . . 1 2 1 . 1 1 Propulsion 10 | . . . . . . . . 4 . . . . . . . . . . 2 . . 4 Utility 23 | . 1 . . . . . . 2 . . . . . . . . 1 1 2 1 . 15 Weapon 4 | . . . . . . . . 1 . 1 . . . . . . . . 1 . . 1 Highest Loss Streak 9 | . 1 . . . . . . 4 . 1 . . . . . . 1 2 2 1 1 9 To Critical Strikes 2 | . . . . . . . . 1 . . . . . . . . . . . 1 . . Average Slot Usage (%) 82 | . 87 99 100 100 93 90 86 78 74 83 93 72 69 69 70 70 79 87 82 86 84 84 Engine 5 | . 14 14 14 14 9 9 9 6 6 6 5 5 5 5 5 5 1 . . . . . Core 2 | . . . . . . . . 1 . . 5 5 5 5 5 5 8 8 . . . . Reactor 1 | . . . . . . . . . . . . . . . . . . . 9 10 10 8 Treads 12 | . 28 28 24 14 13 9 9 11 13 13 11 10 11 11 11 11 11 10 10 10 10 10 Wheel 2 | . . . 3 14 9 9 9 5 6 6 5 1 . . . . . . . . . . Device 15 | . 2 . . . 16 11 27 18 18 25 22 15 10 11 8 5 21 30 27 23 23 18 Storage 7 | . 14 14 14 14 9 9 9 9 6 6 5 5 5 5 5 5 5 5 5 5 5 3 Processor 6 | . . . . . . . . . . . 11 11 11 11 13 17 14 15 12 15 15 12 Hackware 1 | . . . . . . . . . . . . . . . . . . . . . . 12 Protection 8 | . . 13 14 14 17 24 9 10 9 13 11 7 5 5 5 5 1 4 6 9 7 6 Energy Gun 2 | . 14 14 14 14 8 5 . 1 . . . . . . . . . . . . . . Energy Cannon 1 | . . . . . . . . 1 . . . 4 . . . . . . 2 . 5 2 Ballistic Gun 9 | . 14 14 14 14 9 12 14 11 13 8 11 2 11 10 11 11 10 10 5 . 4 5 Peak Build Rating 155 | 9 9 8 11 11 38 44 43 70 65 77 86 110 108 108 108 103 105 117 122 130 141 155 Average Rating 75 | 5 6 7 9 11 33 39 41 49 56 66 85 104 106 107 104 103 100 112 115 124 126 132 On Entrance 67 | . 9 6 8 11 11 38 43 35 49 65 74 86 104 108 108 103 103 103 106 122 130 119 Naked Turns 1 | . . . . . . . . . . . . . . . . . . . . . . 1 Heaviest Build 136 | 12 12 48 48 48 78 79 74 90 90 106 100 127 118 118 118 117 118 87 117 118 126 136 Greatest Support 160 | 40 40 40 40 16 28 28 28 69 28 36 28 145 145 145 145 145 145 145 145 140 160 150 Greatest Overweight (x) 4 | . . 1 2 2 4 2 2 3 3 3 3 3 . . . . . . . . . 1 Average Overweight (x) . | . . . 1 2 2 2 2 1 2 2 3 . . . . . . . . . . . Largest Inventory Capacity 20 | 8 8 20 20 20 20 20 20 20 20 20 20 20 20 20 20 20 20 20 20 20 20 20 Average Capacity 19 | 7 8 18 20 20 20 20 20 20 20 20 20 20 20 20 20 20 20 20 20 20 20 19 Most Carried 20 | 6 8 9 14 15 20 20 20 20 19 20 20 20 20 20 20 17 17 19 20 20 20 20 Average Carried 17 | 4 6 8 10 14 18 19 19 19 17 16 19 18 19 20 17 17 15 17 19 19 18 17 Final Capacity 20 | 8 8 20 20 20 20 20 20 20 20 20 20 20 20 20 20 20 20 20 20 20 20 5 Final Carried 20 | 6 8 9 14 15 19 20 20 20 16 20 20 18 20 20 17 17 17 19 19 19 20 5 Class Distribution -------------------- 55% | Scavenger-Mutant 19% | Mutant 11% | Commander-Mutant 7% | Scavenger-Scrapper Dominant Class ---------------- Mutant | -10/Materials Mutant | -10/Mines Mutant | -10/Exiles Mutant | -9/Mines Scavenger-Skirmisher | -8/Materials Commander-Mutant | -8/Storage Commander-Mutant | -8/Recycling Commander-Mutant | -8/Scraptown Scavenger-Scrapper | -6/Factory Scavenger-Scrapper | -6/DSF Scavenger-Mutant | -5/Factory Scavenger-Mutant | -5/Waste Scavenger-Mutant | -5/Factory Scavenger-Mutant | -5/Upper Caves Scavenger-Mutant | -5/Upper Caves Scavenger-Mutant | -5/Warlord Scavenger-Mutant | -4/Proximity Caves Scavenger-Mutant | -4/Factory Scavenger-Mutant | -4/Extension Scavenger-Mutant | -4/Cetus Scavenger-Mutant | -4/Archives Scavenger-Mutant | -3/Research Resources | -11 -10 -10 -10 -9 -8 -8 -8 -8 -6 -6 -5 -5 -5 -5 -5 -5 -4 -4 -4 -4 -4 -3 ----------- Run | Yrd Mat Min Exi Min Mat Sto Rec Scr Fac DSF Fac Was Fac Upp Upp War Pro Fac Ext Cet Arc Res Matter Collected 6328 | 284 6 36 20 20 449 137 49 1623 . 311 28 40 144 30 195 . 552 89 504 81 225 1505 Remotely 678 | . . . . . . . . . . . . . . . . . . . . . . 678 Salvage Created 16458 | 91 111 13 . . 755 115 . 4584 . 676 36 1747 228 . 378 . 1701 259 1764 354 687 2959 Parts 704 | 7 9 4 . . 38 7 . 234 . 28 2 9 8 . 14 . 86 13 73 17 33 122 Haulers Intercepted 7 | . . . . . 4 1 . . . . . . 1 . . . . . . . . 1 Recyclers Shooed 9 | . . 1 . . . 1 . . . . . . . . . . . . 3 . . 4 Parts Field Recycled . | . . . . . . . . . . . . . . . . . . . . . . . Retrieved Matter . | . . . . . . . . . . . . . . . . . . . . . . . Parts Self-Destructed 115 | . . . . . . . . . . . . . . 17 12 . 86 . . . . . Prevented 7 | . . . . . . . . . . . . . . . . . 7 . . . . . Kills | -11 -10 -10 -10 -9 -8 -8 -8 -8 -6 -6 -5 -5 -5 -5 -5 -5 -4 -4 -4 -4 -4 -3 ------- Run | Yrd Mat Min Exi Min Mat Sto Rec Scr Fac DSF Fac Was Fac Upp Upp War Pro Fac Ext Cet Arc Res Combat Hostiles Destroyed 198 | . 6 . . . 7 1 . 64 . 9 . 6 3 . 6 . 27 3 21 4 4 37 Guns 116 | . 6 . . . 7 1 . 32 . 4 . . 3 . 6 . 27 3 12 . . 15 Cannons 29 | . . . . . . . . 5 . 1 . . . . . . . . 7 . 3 13 AOE 17 | . . . . . . . . 15 . 2 . . . . . . . . . . . . Classes Destroyed 29 | 2 1 . . . 4 1 . 11 . 4 . 1 . . . . 2 . 3 . . . Worker 4 | . . . . . . . . . . . . . . . . . . . 1 . . 3 Builder 5 | . . . . . . . . . . . . . . . . . . . 1 . . 4 Tunneler 2 | 1 . 1 . . . . . . . . . . . . . . . . . . . . Hauler 7 | . . . . . 4 1 . . . . . . 1 . . . . . . . . 1 Recycler 4 | 1 . . . . 1 . . . . . . . . . . . . . 1 . . 1 Operator 9 | . . . . . . 1 . . . . . . . . . . . . . . 8 . Watcher 5 | . . . . . 2 . . . . . 1 . . . . . . . . 1 . 1 Swarmer 16 | . 6 . . . . . . . . . . . . . . . 6 . 1 . . 3 Grunt 57 | . . . . . 5 1 . 2 . . . . . . 5 . 13 3 11 . . 17 Brawler 2 | . . . . . . . . . . . . . . . . . 2 . . . . . Duelist 2 | . . . . . . . . . . . . . . . . . 1 . 1 . . . Sentry 14 | . . . . . 3 . . . . . . . . . . . 3 . 3 . 4 1 Specialist 6 | . . . . . . . . . . 5 . . . . . . . . . . . 1 Hunter 12 | . . . . . . . . . . 2 . . . . . . . . 2 . . 8 Programmer 11 | . . . . . . . . . . 1 . . 3 . . . 2 . . . . 5 Heavy 2 | . . . . . . . . . . 1 . . . . . . . . . . . 1 Behemoth 2 | . . . . . . . . . . . . . . . . . . . 1 . . 1 Compactor 6 | . . . . . . . . . . . . 6 . . . . . . . . . . Cetus Guard 4 | . . . . . . . . . . . . . . . . . . . . 4 . . Bolteater 5 | . . . . . . . . 5 . . . . . . . . . . . . . . Federalist 3 | . . . . . . . . 3 . . . . . . . . . . . . . . Explorer 4 | . . . . . . . . 4 . . . . . . . . . . . . . . Ranger 2 | . . . . . . . . 2 . . . . . . . . . . . . . . Guru 5 | . . . . . . . . 5 . . . . . . . . . . . . . . Scientist 5 | . . . . . . . . 5 . . . . . . . . . . . . . . Scrapper 30 | . . . . . . . . 30 . . . . . . . . . . . . . . Elite 10 | . . . . . . . . 10 . . . . . . . . . . . . . . Zionite 2 | . . . . . . . . 2 . . . . . . . . . . . . . . Tinkerer 1 | . . . . . . . . 1 . . . . . . . . . . . . . . Thug 4 | . . . . . . . . 3 . . . . . . . . . . 1 . . . Butcher 1 | . . . . . . . . . . . . . . . . . . . 1 . . . Mutant 2 | . . . . . . . . 1 . . . . . . 1 . . . . . . . Best Kill Streak 13 | 1 6 1 . . 3 2 . 13 . 4 1 5 2 . 5 . 8 3 4 5 4 9 Combat Bots Only 13 | . 6 . . . 2 1 . 13 . 4 . 5 2 . 5 . 8 3 4 4 1 7 Max Kills in Single Turn 3 | 1 1 1 . . 1 1 . 3 . 2 1 2 1 . 1 . 1 1 2 1 1 1 Gunslinging 1 | . . . . . . . . 1 . . . . . . . . . . . . . . Exploded 1 | . . . . . . . . 1 . 1 . . . . . . . . . . . . Melee . | . . . . . . . . . . . . . . . . . . . . . . . Uniques/NPCs Destroyed 1 | . . . . . . . . 1 . . . . . . . . . . . . . . Triborg (-8/Scraptown) Combat | -11 -10 -10 -10 -9 -8 -8 -8 -8 -6 -6 -5 -5 -5 -5 -5 -5 -4 -4 -4 -4 -4 -3 -------- Run | Yrd Mat Min Exi Min Mat Sto Rec Scr Fac DSF Fac Was Fac Upp Upp War Pro Fac Ext Cet Arc Res Hostile Shots Fired 1394 | . 21 1 . . 46 2 . 289 . 66 . . 13 7 40 . 126 31 121 19 10 602 Missed 329 | . 7 . . . 14 . . 73 . 14 . . 5 4 6 . 15 9 31 9 3 139 Damage Taken 17671 | . 106 15 . . 503 61 . 4176 . 1031 . . 64 42 469 57 1517 432 1704 200 139 7155 Core 2017 | . 39 . . . 15 . . 419 . 61 . . . . . . 77 15 90 . . 1301 Absorbed by Shields 3244 | . . . . . . . . . . . . . 29 16 170 23 537 87 84 60 42 2196 Reduced by Siege Mode 1311 | . . . . . . . . 739 . . . . . . 25 . 195 . 57 . 6 289 Redirected to Shielding 23 | . . 4 . . . . . 19 . . . . . . . . . . . . . . Ignored by Resistances 360 | . . . . . . . . . . . . . 148 . . . 148 . 64 . . . Regen/Repaired (Parts) 22 | . . . . . . . . 7 . 15 . . . . . . . . . . . . Core Remaining (%) 79 | 100 . . . 84 . . . 21 . 92 . . . . . . 92 . . . 90 . Volleys Fired 836 | 14 11 2 . . 66 16 . 195 . 24 1 10 13 . 24 . 55 16 108 6 63 212 Largest 2 | 2 2 1 . . 2 2 . 2 . 2 2 1 2 . 2 . 2 2 2 1 2 2 Hottest 250 | 60 60 20 . . 89 83 . 250 . 250 60 250 60 . 60 . 60 60 105 43 179 203 Shots Fired 1281 | 15 21 2 . . 117 32 . 316 . 39 2 10 26 . 48 . 110 32 139 6 75 291 Gun 904 | 15 21 2 . . 117 32 . 243 . 32 2 . 26 . 48 . 110 32 62 . 18 144 Cannon 370 | . . . . . . . . 72 . 7 . 10 . . . . . . 77 . 57 147 Launcher 6 | . . . . . . . . . . . . . . . . . . . . 6 . . Special 1 | . . . . . . . . 1 . . . . . . . . . . . . . . Kinetic 818 | 14 11 2 . . 66 22 . 232 . 29 2 . 26 . 48 . 110 32 62 . 18 144 Thermal 407 | . . . . . 50 10 . 83 . 10 . 10 . . . . . . 77 . 39 128 Explosive . | . . . . . . . . . . . . . . . . . . . . . . . Electromagnetic 55 | 1 10 . . . 1 . . . . . . . . . . . . . . 6 18 19 Robot Hit Streak 59 | 14 7 3 . . 8 7 . 59 . 9 3 9 2 . 9 . 30 7 27 . 15 24 Robot Miss Streak 5 | . 2 . . . 3 2 . 4 . 3 . 1 2 . 5 . 2 2 4 . 3 3 Penetration Max 1 | . . . . . 1 . . 1 . . . . . . . . 1 . 1 . 1 1 Secondary Targets 16 | . . . . . . . . 4 . 1 . . . . 1 . 7 2 . . . 1 Max Gunslinging Chain 1 | . . . . . . . . 1 . 1 . . . . 1 . 1 1 . . . 1 Capacitor 201 | . . . . . . . . . . . . . . . . . . . 74 . 43 84 Shots Hit Robots 770 | 14 12 1 . . 38 14 . 213 . 27 2 8 10 . 29 . 87 13 95 . 42 165 Core Hits 484 | 4 6 2 . . 24 5 . 161 . 18 1 10 7 . 11 . 50 8 55 7 27 88 Critical Kills 34 | . . . . . . . . 1 . . 1 . 1 . 3 . 6 2 4 . . 16 Critical Parts Destroyed 28 | . . . . . 2 . . 3 . 1 . . 2 . . . 3 1 1 . 3 12 Critical Strikes 66 | . . . . . 4 1 . 5 . 1 1 . 3 . 3 . 9 3 5 . 3 28 Burn 4 | . . . . . 2 1 . 1 . . . . . . . . . . . . . . Meltdown 7 | . . . . . . . . . . . . . . . . . . . 1 . . 6 Destroy 55 | . . . . . 2 . . 4 . 1 1 . 3 . 3 . 9 3 4 . 3 22 Melee Attacks 3 | . . . . . . . . . . 2 . . . 1 . . . . . . . . Impact 2 | . . . . . . . . . . 2 . . . . . . . . . . . . Slashing 1 | . . . . . . . . . . . . . . 1 . . . . . . . . Piercing . | . . . . . . . . . . . . . . . . . . . . . . . Sneak Attacks . | . . . . . . . . . . . . . . . . . . . . . . . Combat Hostiles . | . . . . . . . . . . . . . . . . . . . . . . . Follow-up Attacks . | . . . . . . . . . . . . . . . . . . . . . . . Damage Inflicted 27253 | 115 125 25 . . 1083 289 . 6044 . 984 59 1034 529 . 873 . 2679 435 3849 511 1685 6934 Guns 14751 | 115 125 24 . . 1075 289 . 3237 . 477 59 . 529 . 873 . 2679 435 1488 . 264 3082 Cannons 8521 | . . . . . . . . 621 . 113 . 334 . . . . . . 2350 . 1267 3836 Explosions 3945 | . . . . . . . . 2186 . 394 . 700 . . . . . . . 511 154 . Melee . | . . . . . . . . . . . . . . . . . . . . . . . Ramming 36 | . . 1 . . 8 . . . . . . . . . . . . . 11 . . 16 Kinetic 13899 | 100 47 24 . . 532 218 . 3117 . 452 59 . 529 . 873 . 2679 435 1488 . 264 3082 Thermal 11675 | . . . . . 531 71 . 2927 . 532 . 1034 . . . . . . 2350 . 946 3284 Explosive . | . . . . . . . . . . . . . . . . . . . . . . . Electromagnetic 1643 | 15 78 . . . 12 . . . . . . . . . . . . . . 511 475 552 Impact . | . . . . . . . . . . . . . . . . . . . . . . . Slashing . | . . . . . . . . . . . . . . . . . . . . . . . Piercing . | . . . . . . . . . . . . . . . . . . . . . . . Highest Corruption 43 | . . . . . 2 2 2 2 . 3 . . . . . . . . . . 43 12 Average Corruption 4 | . . . . . 2 2 2 1 . 2 . . . . . . . . . . 17 7 Corruption Purged . | . . . . . . . . . . . . . . . . . . . . . . . Corruption Blocked . | . . . . . . . . . . . . . . . . . . . . . . . Effects 72 | . . . . . 1 4 5 16 . 5 . . . . . . . . . . 8 33 Message Errors 14 | . . . . . . . 2 5 . 1 . . . . . . . . . . 1 5 Matter Fused 21 | . . . . . . 2 . 5 . 2 . . . . . . . . . . 4 8 Heat Flow Errors 8 | . . . . . 1 . 2 1 . . . . . . . . . . . . 2 2 Energy Discharges 6 | . . . . . . 2 . 2 . . . . . . . . . . . . 1 1 Parts Fused 1 | . . . . . . . 1 . . . . . . . . . . . . . . . Data Loss (minor) 3 | . . . . . . . . . . . . . . . . . . . . . . 3 Data Loss (major) 5 | . . . . . . . . 2 . . . . . . . . . . . . . 3 Misfires 3 | . . . . . . . . 1 . . . . . . . . . . . . . 2 Alerts 4 | . . . . . . . . . . 1 . . . . . . . . . . . 3 Misdirections 3 | . . . . . . . . . . . . . . . . . . . . . . 3 Weapon Failures 4 | . . . . . . . . . . 1 . . . . . . . . . . . 3 Overload Shots . | . . . . . . . . . . . . . . . . . . . . . . . Overflow Damage 220 | . . . . . . . . . . . . . . . . . . . 69 . 58 93 Projectiles 220 | . . . . . . . . . . . . . . . . . . . 69 . 58 93 Explosions . | . . . . . . . . . . . . . . . . . . . . . . . Melee . | . . . . . . . . . . . . . . . . . . . . . . . Knockbacks 1 | . . . . . . . . . . . . . . . . . . . 1 . . . Impact 1 | . . . . . . . . . . . . . . . . . . . 1 . . . Kinetic . | . . . . . . . . . . . . . . . . . . . . . . . Secondary . | . . . . . . . . . . . . . . . . . . . . . . . Self-Inflicted Damage 49 | . . . . . 4 . . 38 . 7 . . . . . . . . . . . . Shots 4 | . . . . . . . . 2 . 2 . . . . . . . . . . . . Rammed 5 | . . 1 . . 1 . . . . . . . . . . . . . 2 . . 1 Targets Rammed 5 | . . 1 . . 1 . . . . . . . . . . . . . 2 . . 1 Kicked . | . . . . . . . . . . . . . . . . . . . . . . . Crushed . | . . . . . . . . . . . . . . . . . . . . . . . Highest Temperature 645 | 20 60 . . . 230 32 129 372 . 320 . 328 112 . 239 294 302 . 234 . 224 645 Average Temperature 90 | 10 26 . . . 38 10 65 89 . 80 . 183 49 . 95 144 94 . 82 . 72 111 Received Heat Transfer 3984 | . . 9 . . 270 36 . 1550 . 90 . . . 14 175 . 466 53 381 . 21 919 Effects 7 | . . . . . . . . 4 . . . . . . . . . . . . . 3 Shutdowns 2 | . . . . . . . . . . . . . . . . . . . . . . 2 Energy Bleed 1 | . . . . . . . . 1 . . . . . . . . . . . . . . Interference 3 | . . . . . . . . 3 . . . . . . . . . . . . . . Damage (minor) 1 | . . . . . . . . . . . . . . . . . . . . . . 1 Siege Activations 35 | . . . . . . . . 8 . . . . . . 1 . 6 1 3 . 3 13 Total Turns 1478 | . . . . . . . . 650 . . . . . . 35 . 223 6 58 . 51 455 Longest Duration 222 | . . . . . . . . 222 . . . . . . 35 . 76 6 21 . 31 102 Robots Corrupted 9 | . . . . . . . . . . . . . . . . . . . . 4 1 4 Combat Hostiles 9 | . . . . . . . . . . . . . . . . . . . . 4 1 4 Parts Fried 12 | . . . . . . . . . . . . . . . . . . . 1 2 5 4 Impact Corruptions . | . . . . . . . . . . . . . . . . . . . . . . . Robots Melted 31 | . . . . . . . . 14 . 3 . 6 . . . . . . 2 . . 6 Combat Hostiles 27 | . . . . . . . . 12 . 2 . 6 . . . . . . 2 . . 5 Parts Melted 138 | . . . . . 2 . . 66 . 20 . 20 . . . . . . 12 . 6 12 Heat Transferred 31243 | . . . . . 1221 222 . 13690 . 2690 . 5520 . . . . . . 3203 . 1300 3397 Parts Sabotaged 2 | . . . . . . . . . . . . . . . . . 2 . . . . . Parts Stolen 3 | . . . . . . . . . . . . . . . 3 . . . . . . . Parts Stripped . | . . . . . . . . . . . . . . . . . . . . . . . Power Chain Reactions 1 | . . . . . . . . . . . . . . . . . . . . . 1 . Alert | -11 -10 -10 -10 -9 -8 -8 -8 -8 -6 -6 -5 -5 -5 -5 -5 -5 -4 -4 -4 -4 -4 -3 ------- Run | Yrd Mat Min Exi Min Mat Sto Rec Scr Fac DSF Fac Was Fac Upp Upp War Pro Fac Ext Cet Arc Res Peak Influence 1064 | 10 156 144 . . 321 565 252 . . 276 166 58 258 . . . . 284 504 281 335 1064 Initial 212 | . 6 60 . . . 135 212 . . . 144 58 . . . . . 67 128 191 112 125 Average 210 | 3 128 58 . . 173 389 228 . . 150 157 27 50 . . . . 122 305 267 249 410 Maximum Alert Level 3 | . . . . . 1 2 1 . . 1 . . 1 . . . . 1 2 1 1 3 Low Security (%) 53 | 100 100 100 . 100 58 21 . . 100 66 100 100 93 . . . . 80 9 8 37 14 Level 1 36 | . . . . . 41 31 100 . . 33 . . 6 . . . . 19 81 91 62 49 Level 2 7 | . . . . . . 46 . . . . . . . . . . . . 8 . . 22 Level 3 2 | . . . . . . . . . . . . . . . . . . . . . . 14 Level 4 . | . . . . . . . . . . . . . . . . . . . . . . . Level 5 . | . . . . . . . . . . . . . . . . . . . . . . . High Security . | . . . . . . . . . . . . . . . . . . . . . . . Max Security . | . . . . . . . . . . . . . . . . . . . . . . . Sterilizations 1 | . . . . . . . . . . 1 . . . . . . . . . . . . Squads Dispatched 23 | . . . . . 4 1 . . . 2 1 . 1 . . . 1 1 2 . . 10 Investigation 4 | . . . . . 2 . . . . . . . . . . . . . 1 . . 1 Extermination 4 | . . . . . . . . . . . . . 1 . . . . 1 . . . 2 Reinforcement 12 | . . . . . 2 1 . . . 2 1 . . . . . . . 1 . . 5 Assault 3 | . . . . . . . . . . . . . . . . . 1 . . . . 2 Garrison . | . . . . . . . . . . . . . . . . . . . . . . . Intercept . | . . . . . . . . . . . . . . . . . . . . . . . Searches Triggered . | . . . . . . . . . . . . . . . . . . . . . . . Construction Impeded 3 | . . . . . 1 . . . . . . . . . . . . . . . . 2 Haulers Reinforced 1 | . . . . . . . . . . . . . . . . . . . . . . 1 Active Scanning Responses . | . . . . . . . . . . . . . . . . . . . . . . . Cargo Convoy Interrupts . | . . . . . . . . . . . . . . . . . . . . . . . Stealth | -11 -10 -10 -10 -9 -8 -8 -8 -8 -6 -6 -5 -5 -5 -5 -5 -5 -4 -4 -4 -4 -4 -3 --------- Run | Yrd Mat Min Exi Min Mat Sto Rec Scr Fac DSF Fac Was Fac Upp Upp War Pro Fac Ext Cet Arc Res Distress Signals 9 | . 1 . . . 1 1 . . . . . . . . . . . . 3 1 . 2 Communications Jammed 33 | . . . . . . . . . . . . . . . . . . . 16 . . 17 Distress Signals 25 | . . . . . . . . . . . . . . . . . . . 16 . . 9 Times Spotted 313 | . 8 6 . . 31 6 . 52 . 12 1 6 5 11 10 . 22 5 31 5 22 80 Peak Tracking Total 16 | . 7 2 . . 6 3 . 6 . 4 1 3 3 5 4 . 8 3 4 5 1 16 Tactical Retreats 27 | . 1 . . . 11 1 . . . 3 . . . 2 1 . . . . . . 8 Traps | -11 -10 -10 -10 -9 -8 -8 -8 -8 -6 -6 -5 -5 -5 -5 -5 -5 -4 -4 -4 -4 -4 -3 ------- Run | Yrd Mat Min Exi Min Mat Sto Rec Scr Fac DSF Fac Was Fac Upp Upp War Pro Fac Ext Cet Arc Res Traps Triggered 14 | . . . . . 4 . . . . 3 1 . 1 . . 2 . . . . . 3 Indirectly . | . . . . . . . . . . . . . . . . . . . . . . . Trap Hack Attempts . | . . . . . . . . . . . . . . . . . . . . . . . Triggered . | . . . . . . . . . . . . . . . . . . . . . . . Disarmed . | . . . . . . . . . . . . . . . . . . . . . . . Reprogrammed . | . . . . . . . . . . . . . . . . . . . . . . . Reused . | . . . . . . . . . . . . . . . . . . . . . . . Traps Extracted . | . . . . . . . . . . . . . . . . . . . . . . . Installed . | . . . . . . . . . . . . . . . . . . . . . . . Triggered 3 | . . . . . . . . . . . . . . 1 . . 2 . . . . . Machines | -11 -10 -10 -10 -9 -8 -8 -8 -8 -6 -6 -5 -5 -5 -5 -5 -5 -4 -4 -4 -4 -4 -3 ---------- Run | Yrd Mat Min Exi Min Mat Sto Rec Scr Fac DSF Fac Was Fac Upp Upp War Pro Fac Ext Cet Arc Res Machines Disabled 30 | . . . . . 3 1 . 10 . 1 . . 4 . 2 . 1 3 . . 3 2 Max in Single Turn 3 | . . . . . 1 1 . 2 . 1 . . 1 . 1 . 1 3 . . 1 1 Garrison Access 1 | . . . . . . . . . . . . . . . . . . . . . . 1 Machines Repaired . | . . . . . . . . . . . . . . . . . . . . . . . Machines Dismantled . | . . . . . . . . . . . . . . . . . . . . . . . Machines Sabotaged . | . . . . . . . . . . . . . . . . . . . . . . . Overloaded Fab Kills . | . . . . . . . . . . . . . . . . . . . . . . . Hacking | -11 -10 -10 -10 -9 -8 -8 -8 -8 -6 -6 -5 -5 -5 -5 -5 -5 -4 -4 -4 -4 -4 -3 --------- Run | Yrd Mat Min Exi Min Mat Sto Rec Scr Fac DSF Fac Was Fac Upp Upp War Pro Fac Ext Cet Arc Res Machines Accessed 34 | . 1 . 3 . 2 5 4 4 1 . . . 1 . 1 . . 1 6 1 . 4 Terminals 23 | . 1 . . . 2 5 2 . 1 . . . 1 . . . . 1 6 1 . 3 Fabricators . | . . . . . . . . . . . . . . . . . . . . . . . Repair Stations . | . . . . . . . . . . . . . . . . . . . . . . . Recycling Units . | . . . . . . . . . . . . . . . . . . . . . . . Scanalyzers . | . . . . . . . . . . . . . . . . . . . . . . . Garrison Access 1 | . . . . . . . . . . . . . . . . . . . . . . 1 Total Hacks 129 | . 2 . 25 . 7 8 28 27 2 . . . 2 . 6 . . 2 11 1 . 8 Successful 104 | . 1 . 25 . 2 5 26 27 1 . . . 2 . 6 . . 1 6 . . 2 Failed 25 | . 1 . . . 5 3 2 . 1 . . . . . . . . 1 5 1 . 6 Catastrophic 7 | . . . . . 3 . . . . . . . . . . . . . 1 . . 3 Database Lockouts . | . . . . . . . . . . . . . . . . . . . . . . . Manual 20 | . 1 . 1 . 6 5 4 . . . . . 2 . . . . . . 1 . . Terminals 45 | . 2 . . . 7 8 4 . 2 . . . 2 . . . . 2 11 1 . 6 Fabricators . | . . . . . . . . . . . . . . . . . . . . . . . Repair Stations . | . . . . . . . . . . . . . . . . . . . . . . . Recycling Units . | . . . . . . . . . . . . . . . . . . . . . . . Scanalyzers . | . . . . . . . . . . . . . . . . . . . . . . . Garrison Access 2 | . . . . . . . . . . . . . . . . . . . . . . 2 Terminal Hacks 103 | . 1 . 25 . 2 5 26 27 1 . . . 1 . 6 . . 1 6 . . 2 Record 81 | . . . 24 . . . 24 27 . . . . . . 6 . . . . . . . Part Schematic 1 | . . . . . . 1 . . . . . . . . . . . . . . . . Open Door 4 | . . . . . . 1 . . . . . . . . . . . . 3 . . . Open DSF 1 | . . . . . . . . . 1 . . . . . . . . . . . . . Branch Access Points 4 | . . . . . 1 1 . . . . . . 1 . . . . 1 . . . . Terminal Index 2 | . . . . . . 1 1 . . . . . . . . . . . . . . . Alert Level 1 | . . . . . . . . . . . . . . . . . . . . . . 1 Unreport Threat 1 | . . . . . . . . . . . . . . . . . . . 1 . . . Locate Traps 1 | . . . . . . . . . . . . . . . . . . . . . . 1 Security Status 1 | . . . . . . . . . . . . . . . . . . . 1 . . . Hauler Manifests 1 | . 1 . . . . . . . . . . . . . . . . . . . . . Registered Components 1 | . . . . . . 1 . . . . . . . . . . . . . . . . Zone Layout 3 | . . . . . 1 . 1 . . . . . . . . . . . 1 . . . Derelict Proto ID Bank 1 | . . . 1 . . . . . . . . . . . . . . . . . . . Fabricator Hacks . | . . . . . . . . . . . . . . . . . . . . . . . Repair Station Hacks . | . . . . . . . . . . . . . . . . . . . . . . . Recycling Unit Hacks . | . . . . . . . . . . . . . . . . . . . . . . . Scanalyzer . | . . . . . . . . . . . . . . . . . . . . . . . Garrison Access Hacks . | . . . . . . . . . . . . . . . . . . . . . . . Unauthorized Hacks 1 | . . . . . . . . . . . . . 1 . . . . . . . . . Terminals 1 | . . . . . . . . . . . . . 1 . . . . . . . . . Botnet 1 | . . . . . . . . . . . . . 1 . . . . . . . . . Fabricators . | . . . . . . . . . . . . . . . . . . . . . . . Repair Stations . | . . . . . . . . . . . . . . . . . . . . . . . Recycling Units . | . . . . . . . . . . . . . . . . . . . . . . . Scanalyzers . | . . . . . . . . . . . . . . . . . . . . . . . Garrison Access . | . . . . . . . . . . . . . . . . . . . . . . . Data Cores Recovered . | . . . . . . . . . . . . . . . . . . . . . . . Used . | . . . . . . . . . . . . . . . . . . . . . . . Hacking Detections 21 | . 1 . . . 2 4 1 . . . . . 1 . . . . 1 5 2 . 4 Full Trace Events 3 | . . . . . 1 . . . . . . . . . . . . . 1 . . 1 Feedback Events . | . . . . . . . . . . . . . . . . . . . . . . . Feedback Blocked . | . . . . . . . . . . . . . . . . . . . . . . . Robot Schematics Acquired . | . . . . . . . . . . . . . . . . . . . . . . . Robots Built . | . . . . . . . . . . . . . . . . . . . . . . . Authchips . | . . . . . . . . . . . . . . . . . . . . . . . Time . | . . . . . . . . . . . . . . . . . . . . . . . Total Robot Build Rating . | . . . . . . . . . . . . . . . . . . . . . . . Part Schematics Acquired 1 | . . . . . . 1 . . . . . . . . . . . . . . . . Parts Built . | . . . . . . . . . . . . . . . . . . . . . . . Authchips . | . . . . . . . . . . . . . . . . . . . . . . . Time . | . . . . . . . . . . . . . . . . . . . . . . . Total Part Build Rating . | . . . . . . . . . . . . . . . . . . . . . . . Parts Repaired . | . . . . . . . . . . . . . . . . . . . . . . . Time . | . . . . . . . . . . . . . . . . . . . . . . . Parts Recycled . | . . . . . . . . . . . . . . . . . . . . . . . Recycled Matter . | . . . . . . . . . . . . . . . . . . . . . . . Retrieved Matter . | . . . . . . . . . . . . . . . . . . . . . . . Retrieved Components . | . . . . . . . . . . . . . . . . . . . . . . . Parts Scanalyzed . | . . . . . . . . . . . . . . . . . . . . . . . Part Schematics Acquired . | . . . . . . . . . . . . . . . . . . . . . . . Parts Damaged . | . . . . . . . . . . . . . . . . . . . . . . . Bothacking | -11 -10 -10 -10 -9 -8 -8 -8 -8 -6 -6 -5 -5 -5 -5 -5 -5 -4 -4 -4 -4 -4 -3 ------------ Run | Yrd Mat Min Exi Min Mat Sto Rec Scr Fac DSF Fac Was Fac Upp Upp War Pro Fac Ext Cet Arc Res Used RIF Installer . | . . . . . . . . . . . . . . . . . . . . . . . Robots Hacked . | . . . . . . . . . . . . . . . . . . . . . . . Non-combat . | . . . . . . . . . . . . . . . . . . . . . . . Combat . | . . . . . . . . . . . . . . . . . . . . . . . Robot Hacks Applied . | . . . . . . . . . . . . . . . . . . . . . . . Relay Couplers Released 1 | . . . . . . . . . . . . . . . . . . . . . . 1 Machine Destruction 1 | . . . . . . . . . . . . . . . . . . . . . . 1 Fabnet Peak Effective % . | . . . . . . . . . . . . . . . . . . . . . . . Robots Rewired 4 | . . . . . . . . . . . . . . . . . . . 4 . . . Allies Hacked 1 | . . . . . . . . . . . . . 1 . . . . . . . . . Hacks Repelled . | . . . . . . . . . . . . . . . . . . . . . . . Allies | -11 -10 -10 -10 -9 -8 -8 -8 -8 -6 -6 -5 -5 -5 -5 -5 -5 -4 -4 -4 -4 -4 -3 -------- Run | Yrd Mat Min Exi Min Mat Sto Rec Scr Fac DSF Fac Was Fac Upp Upp War Pro Fac Ext Cet Arc Res Total Allies 40 | . . 3 . . . 10 . . . . . 19 . . . . . . 8 . . . Largest Group 19 | . . 3 3 3 3 10 7 6 . . . 19 15 9 3 . . . 7 . . . Highest-Rated Group 702 | . . 40 40 40 40 173 124 109 . . . 702 602 377 130 . . . 280 . . . Highest-Rated Ally 159 | . . 16 16 16 16 29 29 29 . . . 50 50 46 46 . . . 159 . . . Total Orders 18 | . . . . . . . . 16 . 1 . 1 . . . . . . . . . . STAY 9 | . . . . . . . . 9 . . . . . . . . . . . . . . FOLLOW 7 | . . . . . . . . 7 . . . . . . . . . . . . . . EXPLORE 1 | . . . . . . . . . . . . 1 . . . . . . . . . . RETURN 1 | . . . . . . . . . . 1 . . . . . . . . . . . . Ally Attacks 307 | . . 28 . . 30 57 11 36 . . . . 33 54 4 . . . 54 . . . Total Damage 5705 | . . 320 . . 302 663 130 475 . . . . 1066 1214 132 . . . 1403 . . . Kills 45 | . . 8 . . 3 9 2 2 . . . . 2 9 . . . . 10 . . . Allies Corrupted 1 | . . . . . . . . . . . . . 1 . . . . . . . . . Allies Melted 1 | . . . . . . . . . . . . . . 1 . . . . . . . . Intel | -11 -10 -10 -10 -9 -8 -8 -8 -8 -6 -6 -5 -5 -5 -5 -5 -5 -4 -4 -4 -4 -4 -3 ------- Run | Yrd Mat Min Exi Min Mat Sto Rec Scr Fac DSF Fac Was Fac Upp Upp War Pro Fac Ext Cet Arc Res Robot Analysis Total . | . . . . . . . . . . . . . . . . . . . . . . . Derelict Logs Recovered 6 | . . 1 . 1 . . . . . . . . . 2 . . 2 . . . . . Drone Launches 8 | . . . . . . . . . . 4 . 4 . . . . . . . . . . Drone Recoveries 5 | . . . . . . . . . . 4 . 1 . . . . . . . . . . Exploration | -11 -10 -10 -10 -9 -8 -8 -8 -8 -6 -6 -5 -5 -5 -5 -5 -5 -4 -4 -4 -4 -4 -3 ------------- Run | Yrd Mat Min Exi Min Mat Sto Rec Scr Fac DSF Fac Was Fac Upp Upp War Pro Fac Ext Cet Arc Res Turns Passed 17033 | 196 233 1267 526 40 1076 320 355 3837 73 359 279 447 489 526 1591 142 1564 350 1027 196 353 1787 Spaces Moved 7791 | 99 124 541 260 31 507 177 221 1578 51 191 177 235 244 266 871 84 597 173 412 103 110 739 Core 183 | 8 . . . . . . . . . . . . . . . . . . . . . 175 Treads 5044 | 91 124 541 165 . . . . 521 . 2 . 176 244 266 871 84 597 173 412 103 110 564 Legs . | . . . . . . . . . . . . . . . . . . . . . . . Wheels 2564 | . . . 95 31 507 177 221 1057 51 189 177 59 . . . . . . . . . . Hover . | . . . . . . . . . . . . . . . . . . . . . . . Flight . | . . . . . . . . . . . . . . . . . . . . . . . Fastest Speed 50 | 50 160 160 130 130 130 130 130 130 130 130 145 145 170 170 170 170 170 170 160 160 160 50 Average Speed 161 | 151 160 227 199 130 139 130 130 150 135 143 145 163 170 170 170 170 170 170 165 160 160 133 Slowest Speed 245 | 160 160 240 240 130 160 130 130 240 145 180 145 170 170 170 170 170 170 170 170 160 160 245 Overloaded Moves . | . . . . . . . . . . . . . . . . . . . . . . . Propulsion Burnouts . | . . . . . . . . . . . . . . . . . . . . . . . Robots Hopped . | . . . . . . . . . . . . . . . . . . . . . . . Cave-ins Triggered . | . . . . . . . . . . . . . . . . . . . . . . . Exploration Rate (%) 45 | 5 17 94 61 13 42 37 51 58 1 95 5 96 9 53 85 18 80 7 54 52 87 33 Regions Visited 22 Branch Regions 13 Pre-discovered Areas 3 | . . . 1 . . . . 2 . . . . . . . . . . . . . . Known Exits Taken 8 | . . . 1 . 1 1 . . 1 . . . 1 . 1 1 . 1 . . . . Unknown Exits Taken 11 | 1 1 1 . 1 . . 1 1 . . . . . 1 . . 1 . 1 1 1 . Scrap Searched 18 | . . 2 . 1 . . . 4 . . . . . 3 3 . 5 . . . . . Spaces Dug 31 | . . . . . . . . . . 1 . . . . . . . 16 . . 1 13 Terrain Destroyed 422 | . . . . . 3 . . 104 . 1 . . 6 . 35 . 65 72 62 . 29 45 Melee 1 | . . . . . . . . . . 1 . . . . . . . . . . . . Projectile 271 | . . . . . 2 . . 8 . . . . 6 . 35 . 65 29 62 . 21 43 AOE 147 | . . . . . . . . 96 . . . . . . . . . 43 . . 8 . Terrain Rammed . | . . . . . . . . . . . . . . . . . . . . . . . Walls Destroyed . | . . . . . . . . . . . . . . . . . . . . . . . Machines Disabled . | . . . . . . . . . . . . . . . . . . . . . . . Actions | -11 -10 -10 -10 -9 -8 -8 -8 -8 -6 -6 -5 -5 -5 -5 -5 -5 -4 -4 -4 -4 -4 -3 --------- Run | Yrd Mat Min Exi Min Mat Sto Rec Scr Fac DSF Fac Was Fac Upp Upp War Pro Fac Ext Cet Arc Res Total 11427 | 130 140 573 266 31 762 239 291 2830 55 250 198 294 293 338 933 83 1058 206 711 130 268 1348 Wait 2259 | 5 4 23 . . 136 29 67 924 1 5 15 21 32 66 35 . 394 13 118 . 67 304 Move 7770 | 98 123 540 259 30 506 176 220 1577 50 190 177 234 243 265 870 83 596 172 411 102 109 739 Hop . | . . . . . . . . . . . . . . . . . . . . . . . Pick Up 99 | 6 2 2 4 1 14 1 . 23 . 5 2 5 2 . 1 . 2 2 8 5 6 8 Fast Attach 92 | 7 . 1 . . 8 5 . 24 . 4 1 3 1 3 1 . 6 2 10 3 2 11 Attach 75 | . . . . . 4 . . 22 4 4 1 3 . . . . 2 1 7 3 5 19 Detach 38 | . . . . . 1 1 2 10 . 5 . 1 1 . . . . . 4 2 4 7 Swap 65 | . . 2 2 . 7 3 . 8 . 2 . 1 . . 1 . 2 . 6 2 5 24 Drop 152 | . . 2 1 . 19 5 2 47 . 4 1 16 1 3 1 . 1 . 15 7 7 20 Fire 836 | 14 11 2 . . 66 16 . 195 . 24 1 10 13 . 24 . 55 16 108 6 63 212 Melee 3 | . . . . . . . . . . 2 . . . 1 . . . . . . . . Ram 1 | . . . . . 1 . . . . . . . . . . . . . . . . . Kick . | . . . . . . . . . . . . . . . . . . . . . . . Crush 4 | . . 1 . . . . . . . . . . . . . . . . 2 . . 1 Escape Stasis 8 | . . . . . . . . . . 5 . . . . . . . . . . . 3 Rewire 25 | . . . . . . 3 . . . . . . . . . . . . 22 . . . Trap . | . . . . . . . . . . . . . . . . . . . . . . . Miscellaneous . | . . . . . . . . . . . . . . . . . . . . . . . Route ------- -11/Scrapyard -10/Materials -10/Mines (discovered 4 exits: [*Mat x2] / *Exi / [*Sub]) -10/Exiles (discovered 2 exits: *Min x2) -9/Mines -8/Materials (discovered 4 exits: [*Fac x2] / *Sto x2) -8/Storage -8/Recycling -8/Scraptown -6/Factory -6/DSF -5/Factory -5/Waste -5/Factory (discovered 2 exits: *Upp x2) -5/Upper Caves -5/Upper Caves (discovered 2 exits: *Fac / *War) -5/Warlord -4/Proximity Caves -4/Factory (discovered 5 exits: Upp x2 / *Ext x2 / Arm) -4/Extension (discovered 2 exits: *Res / *Cet) -4/Cetus -4/Archives (discovered 3 exits: *Res / [*Hub x2]) -3/Research (discovered 1 exit: Res) History --------- Turn | Location | Event 30 | -11/Scrapyard | Discovered new exit (range 16) 197 | -11/Scrapyard | Entered Materials 289 | -10/Materials | Discovered new exit (range 8) 312 | -10/Materials | Build established: Mutant 430 | -10/Materials | Entered Mines 687 | -10/Mines | Discovered new exit (range 5) 824 | -10/Mines | Assisted by bots powering up and referring to "LRC-V3" 862 | -10/Mines | Discovered new exit (range 5) 1306 | -10/Mines | Discovered new exit (range 11) 1672 | -10/Mines | Deemed a non-threat by the Exiles lab entrance 1674 | -10/Mines | Discovered new exit (range 5) 1697 | -10/Mines | Entered Exiles 1697 | -10/Exiles | Accompanied by 3 allies 1698 | -10/Exiles | Identified exit to Mines 1757 | -10/Exiles | Met 8R-AWN 1798 | -10/Exiles | Met EX-HEX 1863 | -10/Exiles | Met EX-BIN 1894 | -10/Exiles | Aligned with FarCom system 1897 | -10/Exiles | Given EX-Vault access code 1952 | -10/Exiles | Opened EX-Vault 1961 | -10/Exiles | Found Skeleton Box 1970 | -10/Exiles | Found Firepult 1985 | -10/Exiles | Found 0b10 Alert Chip 2034 | -10/Exiles | Warned to stay clear of 0b10 Research branches 2052 | -10/Exiles | Exiles lab attacked by MAIN.C 2129 | -10/Exiles | Learned location of Zion (-7) 2223 | -10/Exiles | Stole three prototypes: 0b10 Alert Chip, Skeleton Box, Firepult 2223 | -10/Exiles | Entered Mines 2223 | -9/Mines | Accompanied by 3 allies 2230 | -9/Mines | Learned Materials terminal intel 2247 | -9/Mines | Discovered new exit (range 7) 2263 | -9/Mines | Entered Materials 2263 | -8/Materials | Accompanied by 3 allies 2263 | -8/Materials | Evolved 4 slots: Propulsion x1, Utility x3 2264 | -8/Materials | Loaded intel: 12 terminal locations 2341 | -8/Materials | Discovered new exit (range 16) 2560 | -8/Materials | Build established: Skirmisher 2806 | -8/Materials | Discovered new exit (range 12) 2974 | -8/Materials | Discovered new exit (range 13) 2978 | -8/Materials | Identified exit to Storage 3044 | -8/Materials | Build established: Scavenger-Skirmisher 3339 | -8/Materials | Entered Storage 3363 | -8/Storage | Assisted by bots powering up and referring to "LRC-V3" 3432 | -8/Storage | Identified exit to Recycling 3643 | -8/Storage | Remotely autohacked Sealed Blast Doors 3659 | -8/Storage | Entered Recycling 3659 | -8/Recycling | Accompanied by 7 allies 3664 | -8/Recycling | Build established: Commander-Mutant 3927 | -8/Recycling | Scanned before Scraplab entrance 3986 | -8/Recycling | Discovered new exit (range 2) 4014 | -8/Recycling | Entered Scraptown 4014 | -8/Scraptown | Accompanied by 6 allies 4014 | -8/Scraptown | System corruption cleaned by C-Scrubber 4361 | -8/Scraptown | Visited IN-MT5's Study 4382 | -8/Scraptown | Visited Cyclists 4421 | -8/Scraptown | Visited Fellowship of the Rings 4439 | -8/Scraptown | Visited The Evicted 4690 | -8/Scraptown | Discovered new exit (range 3) 4784 | -8/Scraptown | Visited Supply Room 4817 | -8/Scraptown | Visited TADAMA 4836 | -8/Scraptown | Visited Cave Peace 4914 | -8/Scraptown | Turned away by UFD registrar 4914 | -8/Scraptown | Turned away by UFD registrar 5373 | -8/Scraptown | Attacked by Scraptown defenders 5376 | -8/Scraptown | Destroyed Triborg 5393 | -8/Scraptown | Found Tri-treads 5405 | -8/Scraptown | Found Siege Articulator 5426 | -8/Scraptown | Lost 3 allies 5623 | -8/Scraptown | Found Tri-treads 5915 | -8/Scraptown | Build established: Mutant 5931 | -8/Scraptown | Destroyed 13 combat bots 6255 | -8/Scraptown | Core integrity fell below 50% 6733 | -8/Scraptown | Lost 4 parts (2n1u1w) 6808 | -8/Scraptown | Found Scrap Suit 6836 | -8/Scraptown | Found PL-3XN's Ring of Power 7105 | -8/Scraptown | Build established: Scavenger-Scrapper 7234 | -8/Scraptown | Entered Cyclist Reading Room 7851 | -8/Scraptown | Entered Factory 7851 | -6/Factory | Evolved 4 slots: Propulsion x1, Utility x3 7853 | -6/Factory | FarCom data flow suspended 7924 | -6/Factory | Identified exit to DSF 7924 | -6/Factory | Entered DSF 7962 | -6/DSF | Additional patrols routed to DSF 7984 | -6/DSF | Discovered new exit (range 16) 8176 | -6/DSF | Sterilization system engaged 8196 | -6/DSF | Ambient heat levels rising (+10) 8211 | -6/DSF | Ambient heat levels rising (+10) 8226 | -6/DSF | Ambient heat levels rising (+10) 8241 | -6/DSF | Ambient heat levels rising (+10) 8256 | -6/DSF | Ambient heat levels rising (+10) 8271 | -6/DSF | Ambient heat levels rising (+10) 8283 | -6/DSF | Entered Factory 8283 | -5/Factory | Evolved 2 slots: Power x1, Utility x1 8410 | -5/Factory | Build established: Scavenger-Mutant 8562 | -5/Factory | Sucked down chute 8562 | -5/Factory | Entered Waste 8570 | -5/Waste | Spotted C-40 Crusher 8592 | -5/Waste | Spotted C-40 Crusher 8596 | -5/Waste | Spotted C-40 Crusher 8600 | -5/Waste | Discovered new exit (range 39) 8643 | -5/Waste | Destroyed C-40 Crusher 8651 | -5/Waste | Spotted C-40 Crusher 8668 | -5/Waste | Destroyed C-40 Crusher 8668 | -5/Waste | Destroyed C-40 Crusher 8670 | -5/Waste | Spotted C-40 Crusher 8673 | -5/Waste | Destroyed C-40 Crusher 8678 | -5/Waste | Spotted C-40 Crusher 8692 | -5/Waste | Destroyed C-40 Crusher 8693 | -5/Waste | Destroyed C-40 Crusher 8725 | -5/Waste | Found Damper Plating 8859 | -5/Waste | Warlord forces began an assault 9009 | -5/Waste | Entered Factory 9009 | -5/Factory | Accompanied by 15 allies 9317 | -5/Factory | P-70 Sage assimilated allied LY-IAT(m) 9360 | -5/Factory | P-70 Sage assimilated allied F5-D1O(d) 9399 | -5/Factory | Lost 4 allies 9415 | -5/Factory | Identified exit to Upper Caves 9498 | -5/Factory | Entered Upper Caves 9498 | -5/Upper Caves | Accompanied by 9 allies 9498 | -5/Upper Caves | Spotted VE-Q0R(f) 9499 | -5/Upper Caves | Allies destroyed VE-Q0R(f) 9648 | -5/Upper Caves | Lost 5 allies 9745 | -5/Upper Caves | Learned Factory trap positions 9765 | -5/Upper Caves | Learned Factory stockpile data 10002 | -5/Upper Caves | Discovered new exit (range 5) 10024 | -5/Upper Caves | Entered another Upper Caves area 10024 | -5/Upper Caves | Accompanied by 3 allies 10087 | -5/Upper Caves | Discovered new exit (range 5) 10447 | -5/Upper Caves | Lost 3 allies 10609 | -5/Upper Caves | Spotted FN-TCY(f) 10609 | -5/Upper Caves | Spotted 34-V35(f) 10611 | -5/Upper Caves | Encountered a Master Thief 10611 | -5/Upper Caves | Encountered a Master Thief 10612 | -5/Upper Caves | 0b10 Alert Chip stolen by Master Thief 10613 | -5/Upper Caves | Firepult stolen by Master Thief 10620 | -5/Upper Caves | Spotted Q5-HTU(f) 10621 | -5/Upper Caves | Encountered a Master Thief 10622 | -5/Upper Caves | Skeleton Box stolen by Master Thief 10671 | -5/Upper Caves | Learned Extension trap positions 10671 | -5/Upper Caves | Learned Factory stockpile data 10671 | -5/Upper Caves | Learned Factory security intel 10671 | -5/Upper Caves | Learned Factory garrison access intel 10807 | -5/Upper Caves | Discovered new exit (range 5) 10892 | -5/Upper Caves | Identified exit to Warlord 11246 | -5/Upper Caves | Attacked by a delusional Derelict stockpiling parts 11615 | -5/Upper Caves | Entered Warlord 11678 | -5/Warlord | Attacked by Warlord forces 11736 | -5/Warlord | Discovered new exit (range 14) 11755 | -5/Warlord | Identified exit to Proximity Caves 11757 | -5/Warlord | Entered Proximity Caves 11859 | -4/Proximity Caves | Learned location of 1 exit from Research 12206 | -4/Proximity Caves | Attracted the attention of an 0b10 outpost 12278 | -4/Proximity Caves | Destroyed 8 combat bots 12411 | -4/Proximity Caves | Learned Research security intel 12877 | -4/Proximity Caves | Attracted the attention of an 0b10 checkpoint 13311 | -4/Proximity Caves | Discovered new exit (range 5) 13321 | -4/Proximity Caves | Entered Factory 13321 | -4/Factory | Evolved 2 slots: Utility x2 13322 | -4/Factory | Loaded intel: 92 trap records 13325 | -4/Factory | Loaded intel: 4 garrison access locations 13381 | -4/Factory | Identified exit to Upper Caves 13381 | -4/Factory | Identified exit to Extension 13381 | -4/Factory | Identified exit to Armory 13520 | -4/Factory | Found Quantum Capacitor 13671 | -4/Factory | Entered Extension 13672 | -4/Extension | Loaded intel: 17 trap records 13729 | -4/Extension | Rescued a captive Derelict 13879 | -4/Extension | Rescued a captive Derelict 13879 | -4/Extension | Rescued a captive Derelict 14140 | -4/Extension | Lost 5 allies 14261 | -4/Extension | Rescued A7 14285 | -4/Extension | Found Quantum Capacitor 14334 | -4/Extension | Spotted B-86 Titan 14371 | -4/Extension | Spotted B-86 Titan 14376 | -4/Extension | Allies destroyed B-86 Titan 14397 | -4/Extension | Destroyed B-86 Titan 14412 | -4/Extension | Extracted ID and sensor layout for unrecognized location from A7's data core 14421 | -4/Extension | Disrupted transfer network 14427 | -4/Extension | Found Hvy. Reflective Plating 14598 | -4/Extension | Discovered new exit (range 19) 14598 | -4/Extension | Discovered new exit (range 19) 14629 | -4/Extension | Disrupted transfer network 14698 | -4/Extension | Entered Cetus 14715 | -4/Cetus | Spotted Cetus Guard 14715 | -4/Cetus | Spotted Cetus Guard 14720 | -4/Cetus | Spotted Cetus Guard 14725 | -4/Cetus | Spotted Cetus Guard 14728 | -4/Cetus | Destroyed Cetus Guard 14731 | -4/Cetus | Destroyed Cetus Guard 14732 | -4/Cetus | Destroyed Cetus Guard 14733 | -4/Cetus | Destroyed Cetus Guard 14860 | -4/Cetus | Discovered new exit (range 20) 14894 | -4/Cetus | Entered Archives 15059 | -4/Archives | Discovered new exit (range 20) 15063 | -4/Archives | Discovered new exit (range 20) 15089 | -4/Archives | System corruption reached 10% 15094 | -4/Archives | System corruption reached 30% 15120 | -4/Archives | Discovered new exit (range 20) 15149 | -4/Archives | Unable to access archive contents 15247 | -4/Archives | Entered Research 15247 | -3/Research | Evolved 2 slots: Utility x2 15248 | -3/Research | Identified exit to Research 15834 | -3/Research | Spotted B-86 Titan 15889 | -3/Research | Destroyed B-86 Titan 16616 | -3/Research | System corruption reached 10% 16747 | -3/Research | First assault squad dispatched 16921 | -3/Research | Lost 9 parts (1p2n5u1w) 16927 | -3/Research | Destroyed 7 combat bots 16998 | -3/Research | Core integrity fell below 50% 17029 | -3/Research | Core integrity fell below 20% 17034 | -3/Research | Destroyed by G-67 Veteran with Plasma Rifle Last Messages --------------- 16984_ System corrupted: IFF burst signal emitted. 16987_ Triggered Segregator Trap. 16987_ Arcs of energy rise from the floor. 16988_ Critical hit (Burn: +50). 16989_ Triggered Stasis Trap. 16989_ A bubble of rippling energy engulfs the area. 16989_ Field strength at 94. 16989_ Field strength at 10. 16990_ Stasis field depleted. 16991_ Adv. Cooling System destroyed. 16994_ Critical hit (Burn: +50). 16994_ Centrium Heavy Treads destroyed. 16998_ Critical hit (Burn: +50). 17000_ Imp. Hacking Suite destroyed. 17001_ Core Analyzer destroyed. 17007_ System corrupted: Matter fused (-9). 17031_ Adv. Visual Processing Unit destroyed. 17033_ Imp. Hacking Suite destroyed. Map ----- +----------------------------------------------------+ | | | | | | | | | | | ????????????????????##############??????????? | | ????????????????????# ! #??????????? | | ????????????????????# #??????????? | | ????????????????????# #??????????? | | ????????????????????# """" #??????????? | | ????????????????????# """" #??????????? | | ????????????????????# """" #??????????? | | ????????????????????#! """" #??????????? | | ????????????????????# #??????????? | | ????????????????????# ! #??????????? | | ????????????????????# #??????????? | | ????????????????????# #??????????? | | ????????????????????# [ #??????????? | | ????????????????????##s####s######??????????? | | ???????????######????# g g #???????????? | | ???????????# ??# ggg #???????????? | | ???????????# # A #???????????? | | ???????????# + #???????????? | | ???????????# # ####???#???????? | | ???????????###########+## #????? #???????? | | ???????????# #@ ###### #???????? | | ???????????# + ! #???????? | | ???????????# # #???????? | | ???????????# # +???????? | | ???????????# ! # #???????? | | ???????????############## #???????? | | ????????????????????????# "" #???????? | | ????????????????????????# gg "F"" #???????? | | ????????????????????????# g"""" #???????? | | ????????????????????????# #???????? | | ???????????????#????????# ! #???????? | | ???????????????# ??????# g #???????? | | ???????????????# ""????# ###+##+#???????? | | ???????????????# "" =??# #??????????????? | | ???????????????# "T # #??????????????? | | ???????????????# "" * + #??????????????? | | ???????????????# "" # #??????????????? | | ???????????????# ??# #??????????????? | | ???????????????# ????# #??????????????? | | ??????????????########### #??????????????? | | ??????????????# !!! # #??????????????? | | ??????????????# !! # #??????????????? | | ??????????????# !! # #??????????????? | | ??????????????# # #??????????????? | | ??????????????# # #??????????????? | +----------------------------------------------------+ Best States ------------- Heat Dissipation 155 Energy Generation 45 Energy Capacity 1115 Matter Stores 300 Matter Capacity 300 Sight Range 20 Terrain Scan Range 18 Terrain Scan Density 10 Jamming Range 16 Additional Mass Support 12 EM Shielding 3 Armor Coverage 3200 Resistance: TH 25 Resistance: EM 90 Propulsion Shielding 33 Weapon Shielding 15 Weapon Cycling 20 Evasion (%) 50 Target Analysis 8 Core Analysis 6 Armor Integrity Analysis 40 Recoil Reduction 4 Salvage Targeting 4 Offensive Hacking 24 Defensive Hacking 12 Item Schematics ----------------- Imp. Trap Scanner | -8/Storage | Hacked Robot Schematics ------------------ None Fabricated ------------ Nothing Alien Tech Used ----------------- None Achievements -------------- None Challenges ------------ None Game ------ Seed SuperdenseClaymoresScrap Manual? 0 Play Time 03:16:52 Cumulative 174.5 hours Start 2024.09.24 @ 07:13:45 End 2024.09.27 @ 06:35:20 Sessions 7 Manual Loads 0 Difficulty Rogue Special Mode None Game No. 83 Rogue 36 Adventurer 16 Explorer 31 Win Type - Total 25 Types 16/5/1/1/0/0/1/1/0 Lore% 76 Gallery% 83 Achievement% 80 Wizard Run 0 Options --------- Layout 2 ASCII 0 Keyboard 0 Movement Mouse Keybinds 0 Fullscreen 1 Font 32/Tamsyn Map View 50x44 Zoom Use 0% Tactical HUD 1 Map Filters NONE Filters NONE Steam 1 RUN: 4024afd1-0146-497a-8ab0-900cf84bb0eb